Cogmind - Beta 16 @@@ ROGUE MODE // 2026.01.23 @ 17:59:46 Player: the Result: Destroyed by I3-EI3(Y) with Heavy Autocannon Performance ------------- Evolutions (6) 3000 Regions Visited (24) 4800 Robots Destroyed (334) 1670 Value Destroyed (12021) 12021 Prototype IDs (92) 1840 Alien Tech Used (2) 400 Bonus (7278) 7278 TOTAL SCORE: 31009 Bonus ------- High Alert Combat Kills 1445 Follower Combat Kills 2757 Awakened Behemoth Slayer 1000 Network Hubs Disabled 600 Met Imprinter 300 Was Imprinted 300 Met Zhirov 300 Built Enhanced Grunts 300 Met R17 at Cetus 500 Friendly Fire -224 Cogmind --------- Core Integrity 0/1150 Matter 217/300 Energy 99/100 System Corruption 3% Temperature Cool (0) Movement Core (50) Location -4/Warlord Parts ------- > --- POWER (3) -------- (None) > --- PROPULSION (6) --- (None) > --- UTILITY (8) ------ (None) > --- WEAPON (3) ------- (None) > --- INVENTORY (5) ---- Transmission Jammer Authchip [Propulsion] Mapping Drone Bay (0/3) EMDS Peak State ------------ > --- POWER ------------ Reinforced Deuterium Engine Light Antimatter Reactor Heavy Antimatter Reactor > --- PROPULSION ------- Flexi-carbon Leg Enhanced Flexi-carbon Leg Myomer Leg Enhanced Biometal Leg Enhanced Biometal Leg Enhanced Biometal Leg > --- UTILITY ---------- Advanced Cooling System High-capacity Storage Unit Enhanced Optical Array Experimental Signal Interpreter Advanced Terrain Scanner Advanced Terrain Scan Processor Centrium Medium Armor Plating Advanced Shield Generator > --- WEAPON ----------- Advanced KE Penetrator Advanced KE Penetrator Advanced KE Penetrator > --- INVENTORY -------- Advanced Cryofiber Web Improved Matter Compressor Improved Sensor Array Core Analyzer Quantum Capacitor Improved Weapon Cycler Transmission Jammer Centrium Medium Armor Plating Authchip [Propulsion] Authchip [Propulsion] Authchip [Device] Authchip [Processor] Long-range Tractor Beam Transdimensional Reconstructor Long-range Proton Cannon EMDS Precision Rocket Launcher CR-A16's Behemoth Slayer [Rating: 146] Favorites ----------- Power Cooled Deuterium Engine Engine Cooled Deuterium Engine Power Core Fission Core Reactor Heavy Antimatter Reactor Propulsion Improved Titanium Leg Treads Light Treads Leg Improved Titanium Leg Flight Unit Makeshift Flight Unit Utility High-capacity Storage Unit Device Seismic Detector Storage High-capacity Storage Unit Processor Experimental Signal Interpreter Hackware Hacking Suite Protection Improved Medium Armor Plating Weapon Advanced KE Penetrator Energy Gun Dispersion Rifle Energy Cannon Subdweller Beam Cannon Ballistic Gun Advanced KE Penetrator Ballistic Cannon Light Cannon Launcher Mini Grenade Launcher Slashing Weapon Makeshift Sword Piercing Weapon CR-A16's Behemoth Slayer Build | -11 -10 -10 -8 -7 -7 -7 -7 -6 -6 -6 -6 -6 -6 -5 -5 -5 -5 -5 -5 -4 -4 -4 -4 -4 ------- Run | Yrd Mat Sub Mat Fac Low Low Zio Pro Fac Ext Cet Arc Hub Fac Was Fac Upp Upp Zhi Pro Fac Upp Upp War Slots Evolved 12 | . . . 4 2 . . . . 2 . . . . 2 . . . . . . 2 . . . Power 1 | . . . . . . . . . . . . . . . . . . . . . 1 . . . Propulsion 4 | . . . 2 . . . . . 1 . . . . 1 . . . . . . . . . . Utility 6 | . . . 2 2 . . . . . . . . . 1 . . . . . . 1 . . . Weapon 1 | . . . . . . . . . 1 . . . . . . . . . . . . . . . Parts Attached 268 | 7 8 17 44 21 4 1 8 5 34 14 7 3 27 . 2 22 4 . 3 1 24 6 1 5 Power 27 | 1 2 2 4 4 1 . . . 3 1 1 . 2 . . 3 1 . 1 . 1 . . . Engine 17 | 1 2 2 3 4 1 . . . 2 1 . . . . . 1 . . . . . . . . Core 5 | . . . 1 . . . . . 1 . . . . . . 2 1 . . . . . . . Reactor 5 | . . . . . . . . . . . 1 . 2 . . . . . 1 . 1 . . . Propulsion 65 | 2 . 3 14 1 1 1 1 2 10 4 1 . 11 . . 4 . . . . 7 . . 3 Treads 13 | 2 . 3 8 . . . . . . . . . . . . . . . . . . . . . Leg 47 | . . . 4 1 1 1 1 2 10 4 1 . 11 . . 4 . . . . 7 . . . Wheel . | . . . . . . . . . . . . . . . . . . . . . . . . . Hover . | . . . . . . . . . . . . . . . . . . . . . . . . . Flight 5 | . . . 2 . . . . . . . . . . . . . . . . . . . . 3 Utility 101 | 2 4 3 11 14 1 . 7 2 9 3 2 1 11 . . 11 . . 2 1 9 5 1 2 Device 52 | 1 1 1 6 5 1 . 1 . 5 1 . 1 9 . . 8 . . . . 7 3 . 2 Storage 9 | 1 3 . 1 1 . . . . . . 1 . . . . 1 . . 1 . . . . . Processor 14 | . . . 2 . . . 5 1 1 . . . 1 . . 1 . . . 1 1 1 . . Hackware 8 | . . . 1 3 . . 1 . 2 . . . . . . 1 . . . . . . . . Protection 18 | . . 2 1 5 . . . 1 1 2 1 . 1 . . . . . 1 . 1 1 1 . Artifact . | . . . . . . . . . . . . . . . . . . . . . . . . . Weapon 75 | 2 2 9 15 2 1 . . 1 12 6 3 2 3 . 2 4 3 . . . 7 1 . . Energy Gun 21 | 1 . . 3 . . . . . 4 2 3 . 2 . 1 1 . . . . 3 1 . . Energy Cannon 11 | . . 3 3 . . . . . 2 1 . . . . . 1 . . . . 1 . . . Ballistic Gun 29 | 1 . 5 6 1 1 . . . 5 . . 2 1 . . 2 2 . . . 3 . . . Ballistic Cannon 4 | . 2 . 1 . . . . . . . . . . . . . 1 . . . . . . . Launcher 7 | . . . 2 1 . . . . 1 2 . . . . 1 . . . . . . . . . Special Weapon . | . . . . . . . . . . . . . . . . . . . . . . . . . Impact Weapon . | . . . . . . . . . . . . . . . . . . . . . . . . . Slashing Weapon 1 | . . 1 . . . . . . . . . . . . . . . . . . . . . . Piercing Weapon 2 | . . . . . . . . 1 . 1 . . . . . . . . . . . . . . Special Melee Weapon . | . . . . . . . . . . . . . . . . . . . . . . . . . Unidentified Prototypes 39 | . . 1 7 3 . . 5 . 1 1 4 1 9 . 1 . . . 4 . 2 . . . Corrupted Parts 2 | . . . . . . . . . . . . 1 1 . . . . . . . . . . . System Corruption 7 | . . . . . . . . . . . . 5 2 . . . . . . . . . . . Parts Lost 45 | . . 1 2 4 1 2 . 1 10 3 . . 3 . 2 5 1 . . . 4 . . 6 Power 8 | . . 1 1 . . . . . 1 . . . 1 . . 2 1 . . . . . . 1 Propulsion 17 | . . . 1 1 . 2 . 1 4 2 . . . . 1 . . . . . 1 . . 4 Utility 13 | . . . . 3 . . . . 3 . . . 2 . . 1 . . . . 3 . . 1 Weapon 7 | . . . . . 1 . . . 2 1 . . . . 1 2 . . . . . . . . Highest Loss Streak 9 | . . 1 1 1 1 1 . 1 9 1 . . 2 . 2 2 1 . . . 2 . . 5 To Critical Strikes . | . . . . . . . . . . . . . . . . . . . . . . . . . Average Backups 16 | 1 9 13 13 15 18 19 19 20 19 18 19 19 19 17 18 18 18 19 18 19 17 17 17 11 Power . | . . . . 1 1 2 1 . 1 1 1 1 . . . . . . . . . . . . Propulsion . | . . . . . . . . . . . . . . . 1 . 1 . . . . 1 . . Utility 9 | . 1 1 5 9 11 11 11 13 12 12 13 13 12 11 11 11 11 12 12 12 12 12 13 8 Weapon 5 | . 5 10 6 5 5 5 6 6 4 4 4 5 5 6 6 6 6 6 5 6 4 4 4 3 Tool/Special . | . . . . . . . . . . . . . . . . . . . . . . . . . Unused Backups 54 | . 4 12 10 4 . . 5 . 5 . 2 . 1 . . 2 . . 1 . . 2 . 6 Power 2 | . . 1 . 1 . . . . . . . . . . . . . . . . . . . . Propulsion 3 | . . 1 2 . . . . . . . . . . . . . . . . . . . . . Utility 25 | . 1 1 2 2 . . 2 . 4 . 2 . 1 . . 2 . . 1 . . 2 . 5 Weapon 22 | . 3 8 6 1 . . 2 . 1 . . . . . . . . . . . . . . 1 Tool/Special 2 | . . 1 . . . . 1 . . . . . . . . . . . . . . . . . Average Slot Usage (%) 93 | . 99 96 93 75 92 93 94 97 92 96 99 100 99 99 98 96 99 100 84 100 92 91 90 86 Engine 7 | . 14 13 6 5 12 12 12 12 5 12 7 6 7 . . . 5 5 5 5 3 . . . Reactor 2 | . . . . . . . . . . . 4 6 3 11 11 8 . . 2 5 8 10 10 9 Treads 8 | . 28 28 28 . . . . . . . . . . . . . . . . . . . . . Leg 20 | . . . 2 22 25 24 28 29 28 29 31 31 30 33 32 31 33 33 33 33 26 30 30 27 Device 12 | . 14 13 8 9 11 12 13 11 9 11 12 12 12 15 16 15 15 15 15 16 15 11 10 16 Storage 7 | . 14 13 8 5 5 6 6 6 5 6 6 6 6 5 5 5 5 5 5 5 5 5 5 4 Processor 10 | . . . 9 5 5 6 11 25 19 13 12 12 14 11 11 14 16 16 16 16 16 15 15 13 Hackware 2 | . . . 6 6 11 12 8 . . . . . . . . . . . . . . . . . Protection 2 | . . . 2 7 6 6 . . 1 3 6 6 3 5 5 1 . . . . 2 5 5 1 Energy Gun 3 | . 1 . . . . . . . 3 14 16 18 6 . 4 . . . . . 2 14 15 13 Energy Cannon 2 | . . 7 5 5 . . . . 4 3 1 . . . . . . . . . . . . . Ballistic Gun 6 | . 5 5 7 . 9 11 11 11 8 . . . 11 16 5 15 11 11 . 10 10 . . . Ballistic Cannon 1 | . 20 4 . . . . . . . . . . . . . . 4 5 . 5 . . . . Slashing Weapon 1 | . . 8 4 . . . . . . . . . . . . . . . . . . . . . Peak Build Rating 146 | 7 9 22 60 85 83 75 85 91 99 89 106 107 131 143 141 136 125 122 119 121 146 135 132 132 Average Rating 76 | 5 7 17 31 71 71 70 72 86 82 83 96 106 110 142 138 126 115 116 102 119 131 131 131 118 On Entrance 89 | . 7 9 20 60 78 75 68 84 84 85 85 106 106 130 143 115 119 117 116 119 119 133 132 132 Avg Prop Armor Cover (%) 3 | . . . 9 . . . . . 6 . . . . . 2 3 . . . . . . . . Naked Turns 20 | . . . . . . . . . . . . . . . . . . . . . . . . 20 Heaviest Build 126 | 12 32 41 51 87 96 78 78 82 82 89 98 98 106 107 108 113 94 100 98 99 118 126 112 112 Greatest Support 178 | 40 40 40 83 100 100 100 87 97 101 83 91 91 148 178 150 158 158 158 158 158 163 159 159 159 Greatest Overweight (x) 6 | . . 1 1 1 1 1 1 1 6 1 1 1 1 . . . . . . . 1 . . . Average Overweight (x) . | . . . . . . . . . . . 1 1 . . . . . . . . . . . . Largest Inventory Capacity 20 | 8 15 15 15 20 20 20 20 20 20 20 20 20 20 20 20 20 20 20 20 20 20 20 20 20 Average Capacity 18 | 7 11 14 15 17 20 20 20 20 20 20 20 20 20 20 20 20 20 20 20 20 20 20 20 18 Most Carried 20 | 5 12 15 15 20 20 20 20 20 20 20 20 20 20 19 19 20 20 20 20 20 20 20 20 20 Average Carried 17 | 1 9 14 14 15 18 19 19 20 19 19 19 20 19 18 19 19 19 19 19 20 19 19 19 12 Final Capacity 20 | 8 15 15 15 20 20 20 20 20 20 20 20 20 20 20 20 20 20 20 20 20 20 20 20 5 Final Carried 20 | 4 12 15 15 20 19 20 20 20 20 20 20 20 20 19 19 20 20 20 20 20 20 20 20 5 Class Distribution -------------------- 28% | Mutant 21% | Scavenger-Skirmisher 12% | Skirmisher 10% | Hacker-Mutant 6% | Tank 4% | Scavenger-Mutant Dominant Class ---------------- Mutant | -10/Materials Mutant | -10/Subcaves Mutant | -8/Materials Tank | -7/Factory Hacker-Mutant | -7/Lower Caves Hacker-Mutant | -7/Lower Caves Hacker-Mutant | -7/Zion Mutant | -6/Proximity Caves Scavenger-Skirmisher | -6/Factory Commander-Skirmisher | -6/Extension Scavenger-Skirmisher | -6/Cetus Scavenger-Skirmisher | -6/Archives Scavenger-Skirmisher | -6/Hub_04(d) Scavenger-Skirmisher | -5/Factory Scavenger-Skirmisher | -5/Waste Scavenger-Skirmisher | -5/Factory Scavenger-Skirmisher | -5/Upper Caves Scavenger-Skirmisher | -5/Upper Caves Scavenger-Mutant | -5/Zhirov Scavenger-Skirmisher | -4/Proximity Caves Scavenger-Skirmisher | -4/Factory Skirmisher | -4/Upper Caves Skirmisher | -4/Upper Caves Skirmisher | -4/Warlord Resources | -11 -10 -10 -8 -7 -7 -7 -7 -6 -6 -6 -6 -6 -6 -5 -5 -5 -5 -5 -5 -4 -4 -4 -4 -4 ----------- Run | Yrd Mat Sub Mat Fac Low Low Zio Pro Fac Ext Cet Arc Hub Fac Was Fac Upp Upp Zhi Pro Fac Upp Upp War Matter Collected 12178 | 283 296 775 1479 587 198 134 148 205 855 430 90 70 1158 . . 1872 586 224 539 92 1222 558 341 36 Remotely 727 | . . . . . . . . . . . . . . . . 603 . . . . 124 . . . Salvage Created 14572 | 144 426 352 1838 1986 215 149 . 286 1445 686 . 171 1707 . . 2694 215 131 337 76 1180 417 . 117 Parts 744 | 13 38 18 137 108 10 8 . 11 55 36 . 15 81 . . 107 7 15 2 9 57 14 . 3 Haulers Intercepted 23 | . 2 . 6 2 . . . . 4 . . . 4 . . 4 . . . . 1 . . . Recyclers Shooed 14 | . . . . . . . . . 6 1 . . . . . 2 . . . . 5 . . . Parts Field Recycled . | . . . . . . . . . . . . . . . . . . . . . . . . . Retrieved Matter . | . . . . . . . . . . . . . . . . . . . . . . . . . Parts Self-Destructed 96 | . . 31 . . 10 7 . 7 . . . . . . . . 7 17 2 6 . 9 . . Prevented 20 | . . . . . . 2 . 13 . . . . . . . . 2 . . . . . 3 . Parts Restored 1 | . . . . . . . . . 1 . . . . . . . . . . . . . . . Broken 1 | . . . . . . . . . 1 . . . . . . . . . . . . . . . Kills | -11 -10 -10 -8 -7 -7 -7 -7 -6 -6 -6 -6 -6 -6 -5 -5 -5 -5 -5 -5 -4 -4 -4 -4 -4 ------- Run | Yrd Mat Sub Mat Fac Low Low Zio Pro Fac Ext Cet Arc Hub Fac Was Fac Upp Upp Zhi Pro Fac Upp Upp War Combat Hostiles Destroyed 215 | . 11 11 36 40 7 5 . 2 14 14 . 1 15 . . 23 3 3 . 5 16 7 . 2 Melee 1 | . . 1 . . . . . . . . . . . . . . . . . . . . . . Guns 98 | . 1 1 19 . 3 2 . 2 7 7 . 1 12 . . 23 1 2 . . 10 5 . 2 Cannons 56 | . 10 8 7 23 . . . . 2 3 . . . . . . 2 1 . . . . . . AOE 47 | . . . 10 11 4 3 . . 2 3 . . 3 . . . . . . 5 4 2 . . Classes Destroyed 20 | 2 6 3 1 4 1 . . . 1 . . . 1 . . . 1 . . . . . . . Worker 29 | . 1 . 9 1 . . . . 3 . . . 6 . . 4 . . . . 5 . . . Builder 19 | . . . 5 3 . . . . 2 1 . . 4 . . 3 . . . . 1 . . . Tunneler 5 | 4 . . . . . . . . . . . . 1 . . . . . . . . . . . Hauler 23 | . 2 . 6 2 . . . . 4 . . . 4 . . 4 . . . . 1 . . . Recycler 13 | 1 . . 1 . . . . . 2 1 . . 3 . . 5 . . . . . . . . Mechanic 1 | . . . . 1 . . . . . . . . . . . . . . . . . . . . Operator 14 | . 3 . 2 3 . . . . . 1 . 3 . . . . . . . . 2 . . . Turret 1 | . . 1 . . . . . . . . . . . . . . . . . . . . . . Watcher 14 | . 3 . 3 3 . . . . . 2 . . . . . 1 . . . . 2 . . . Swarmer 59 | . 6 1 14 10 4 3 . . 2 7 . . . . . . . 1 . 5 4 2 . . Saboteur 1 | . . . . . . . . . . . . . 1 . . . . . . . . . . . Grunt 67 | . 5 1 13 14 3 2 . 1 8 3 . . 5 . . 8 . . . . . 4 . . Brawler 2 | . . . . 1 . . . . . . . . 1 . . . . . . . . . . . Duelist 2 | . . . . . . . . . . . . . . . . . 2 . . . . . . . Sentry 29 | . . 1 9 5 . . . 1 1 2 . 1 1 . . 3 1 . . . 3 1 . . Hunter 15 | . . . . 5 . . . . . 1 . . 1 . . 4 . . . . 4 . . . Programmer 23 | . . . . 5 . . . . 2 . . . 3 . . 7 . 2 . . 4 . . . Behemoth 4 | . . . . . . . . . 1 1 . . . . . 1 . . . . 1 . . . Lightning 3 | . . . . . . . . . . . . . 3 . . . . . . . . . . . Subdweller 8 | . . 8 . . . . . . . . . . . . . . . . . . . . . . Decomposer 1 | . . . . . . . . . . . . . . . . . . . . . . 1 . . Samaritan 3 | . . . . . 1 . . . . . . . . . . . . . . . . 2 . . Thug 1 | . . . . . . . . . . . . . . . . . . . . . . . . 1 Commander 1 | . . . . . . . . . . . . . . . . . . . . . . . . 1 Best Kill Streak 15 | 4 3 2 8 6 4 3 . 1 6 4 . 3 11 . . 15 2 2 . 5 7 3 . 1 Combat Bots Only 9 | . 3 2 6 4 4 3 . 1 6 4 . 1 4 . . 9 2 2 . 5 4 3 . 1 Max Kills in Single Turn 5 | 1 2 1 3 3 2 3 . 1 2 3 . 1 3 . . 2 1 1 . 5 3 2 . 1 Gunslinging 1 | . . . 1 . . . . . . . . . . . . 1 . . . . . . . . Exploded 5 | . . . 3 2 1 3 . . 2 3 . . 2 . . . . . . 5 3 1 . . Melee 1 | . . 1 . . . . . . . . . . . . . . . . . . . . . . Uniques/NPCs Destroyed . | . . . . . . . . . . . . . . . . . . . . . . . . . Combat | -11 -10 -10 -8 -7 -7 -7 -7 -6 -6 -6 -6 -6 -6 -5 -5 -5 -5 -5 -5 -4 -4 -4 -4 -4 -------- Run | Yrd Mat Sub Mat Fac Low Low Zio Pro Fac Ext Cet Arc Hub Fac Was Fac Upp Upp Zhi Pro Fac Upp Upp War Hostile Shots Fired 1509 | . 28 61 156 172 42 18 . 53 134 172 1 4 100 . 1 175 8 10 . 2 205 23 . 144 Missed 543 | . 12 30 44 71 19 5 . 17 36 83 . 2 35 . . 55 . 3 . 1 63 6 . 61 Deflected 20 | . . . . . . . . . . . . . . . . . . . . . 20 . . . Hits 966 | . 16 31 112 101 23 13 . 36 98 89 1 2 65 . 1 120 8 7 . 1 142 17 . 83 Melee 6 | . . . . . . . . . . . . . 3 . 1 . 2 . . . . . . . Projectile 960 | . 16 31 112 101 23 13 . 36 98 89 1 2 62 . . 120 6 7 . 1 142 17 . 83 Critical Strikes 47 | . . 1 6 2 . . . 4 5 1 2 1 5 . 1 4 1 1 . . 8 2 . 3 Actively Blocked 4 | . . . . . . . . . . . . . . . . . . . . . 2 . . 2 Part Disruptions 5 | . . . . . . . . . 1 . . . . . . 1 2 . . . . . . 1 Damage Taken 16686 | . 214 681 1560 1478 280 253 . 638 1761 1047 81 44 1971 . 56 2168 312 120 . 26 2146 321 . 1529 Core 2404 | . 34 101 98 128 35 52 . 25 219 45 . . 399 . . 78 64 18 . . 194 . . 914 Absorbed by Shields 1225 | . . . . . . . . . . . 52 . . . . 492 . . . . 349 37 . 295 Redirected to Shielding 212 | . . . . 187 25 . . . . . . . . . . . . . . . . . . . Regen/Repaired (Parts) 1314 | . 38 . 475 . . . 34 . . . . . . . . 173 . . . . 507 . . 87 Core Remaining (%) 66 | 100 . 46 82 . . . . 65 . . . . 22 . . . . . . 84 . . . . Volleys Fired 908 | 13 42 47 141 132 11 12 . 10 62 51 7 14 92 . . 96 51 24 . 12 70 16 . 5 Largest 3 | 2 2 2 2 1 2 2 . 2 3 3 3 3 3 . . 3 3 3 . 1 3 3 . 3 Hottest 264 | 70 70 160 160 120 159 56 . 56 240 250 250 240 240 . . 105 119 119 . 43 264 264 . 264 Shots Fired 1727 | 26 82 93 241 133 18 21 . 20 137 107 15 42 218 . . 240 80 38 . 13 148 40 . 15 Gun 1222 | 26 24 16 151 . 12 18 . 20 89 70 11 42 214 . . 240 62 28 . 11 137 36 . 15 Cannon 467 | . 58 77 84 122 2 . . . 47 36 4 . . . . . 18 10 . . 9 . . . Launcher 38 | . . . 6 11 4 3 . . 1 1 . . 4 . . . . . . 2 2 4 . . Special . | . . . . . . . . . . . . . . . . . . . . . . . . . Kinetic 1101 | 13 79 80 151 . 12 18 . 20 78 . . . 161 . . 236 80 38 . 11 124 . . . Thermal 577 | 13 3 13 84 122 2 . . . 58 106 15 42 53 . . . . . . . 15 36 . 15 Explosive 38 | . . . 6 11 4 3 . . 1 1 . . 4 . . . . . . 2 2 4 . . Electromagnetic 7 | . . . . . . . . . . . . . . . . . . . . . 7 . . . Phasic 4 | . . . . . . . . . . . . . . . . 4 . . . . . . . . Robot Hit Streak 22 | 5 11 12 22 12 5 8 . 15 16 15 8 6 10 . . 18 10 9 . 2 8 12 . 3 Robot Miss Streak 6 | 2 5 2 5 3 2 1 . 1 5 6 1 3 5 . . 4 3 4 . . 4 4 . 2 Penetration Max 2 | . . . . . . . . . 2 . . . 1 . . 1 1 . . . 1 . . . Secondary Targets 16 | . . . 3 . 1 . . . . 1 . . 1 . . 8 . . . . 1 1 . . Max Gunslinging Chain 1 | . . . 1 . 1 . . . . 1 . . 1 . . 1 . . . . 1 1 . . Shots Hit Robots 987 | 17 44 51 157 73 11 12 . 18 86 71 11 27 106 . . 142 25 10 9 1 82 25 . 9 Core Hits 580 | 9 25 19 78 55 14 7 . 8 54 67 4 16 67 . . 65 8 6 3 5 45 21 . 4 Critical Kills 48 | . . 1 . 7 . . . . 2 1 . . 7 . . 19 1 1 . . 6 2 . 1 Critical Parts Destroyed 52 | . . . 1 . . . . 1 4 . . . 8 . . 22 4 1 . . 9 1 . 1 Critical Strikes 111 | 1 5 1 1 7 . . . 1 6 1 1 . 15 . . 43 5 3 1 . 15 3 . 2 Burn 1 | 1 . . . . . . . . . . . . . . . . . . . . . . . . Meltdown 10 | . . 1 . 7 . . . . 2 . . . . . . . . . . . . . . . Destroy 94 | . . . 1 . . . . 1 4 1 1 . 15 . . 43 5 3 . . 15 3 . 2 Blast 5 | . 5 . . . . . . . . . . . . . . . . . . . . . . . Impale 1 | . . . . . . . . . . . . . . . . . . . 1 . . . . . Melee Attacks 100 | . . 32 32 . . . . 2 12 1 . . . . . . . . 9 . 9 2 . 1 Impact . | . . . . . . . . . . . . . . . . . . . . . . . . . Slashing 64 | . . 32 32 . . . . . . . . . . . . . . . . . . . . . Piercing 36 | . . . . . . . . 2 12 1 . . . . . . . . 9 . 9 2 . 1 Sneak Attacks 14 | . . . 13 . . . . . . . . . . . . . . . . . 1 . . . Combat Hostiles . | . . . . . . . . . . . . . . . . . . . . . . . . . Follow-up Attacks . | . . . . . . . . . . . . . . . . . . . . . . . . . Damage Inflicted 36377 | 185 712 1037 4831 5337 708 460 . 359 2908 2092 298 889 4558 . . 5166 394 208 586 331 3741 1275 1 301 Guns 18625 | 176 143 133 1789 . 200 220 . 292 1524 1288 170 889 3184 . . 4844 258 157 . . 2413 675 . 270 Cannons 8271 | . 537 865 1034 3964 . . . . 876 457 128 . . . . . 136 51 . . 223 . . . Explosions 7065 | . . . 852 1334 508 240 . . 258 302 . . 1333 . . 322 . . . 331 985 600 . . Melee 1976 | . . 39 1100 . . . . 67 102 . . . . . . . . . 586 . 82 . . . Ramming 440 | 9 32 . 56 39 . . . . 148 45 . . 41 . . . . . . . 38 . 1 31 Kinetic 15198 | 65 642 760 1789 . 200 220 . 292 1228 . . . 2501 . . 4844 394 208 . . 2055 . . . Thermal 12494 | 111 38 238 1034 4114 . . . . 1172 1745 298 889 683 . . 322 . . . . 905 675 . 270 Explosive 5806 | . . . 852 1184 508 240 . . 258 302 . . 1055 . . . . . . 331 476 600 . . Electromagnetic 463 | . . . . . . . . . . . . . 278 . . . . . . . 185 . . . Impact . | . . . . . . . . . . . . . . . . . . . . . . . . . Slashing 1139 | . . 39 1100 . . . . . . . . . . . . . . . . . . . . . Piercing 837 | . . . . . . . . 67 102 . . . . . . . . . 586 . 82 . . . Highest Corruption 20 | . 3 3 . 2 2 2 2 . 1 1 1 6 9 . 5 20 20 20 20 20 . . . 3 Average Corruption 5 | . 2 3 . 1 2 2 2 . 1 1 1 2 4 . 5 9 20 20 20 20 . . . 2 Corruption Purged 8 | . . . . 2 . . . . . . . 6 . . . . . . . . . . . . Corruption Blocked . | . . . . . . . . . . . . . . . . . . . . . . . . . Effects 330 | . 13 63 . 12 8 6 1 . 12 15 3 3 18 . 1 61 42 33 8 31 . . . . Message Errors 54 | . 3 7 . . 2 2 . . 1 3 . . 6 . . 10 6 5 2 7 . . . . Matter Fused 88 | . 2 18 . 3 3 . 1 . 8 4 1 1 6 . . 12 10 11 1 7 . . . . Heat Flow Errors 35 | . 1 8 . . . . . . . 4 1 . 1 . . 7 4 3 2 4 . . . . Energy Discharges 45 | . 1 7 . 2 . 2 . . 1 1 . 1 . . 1 15 7 2 2 3 . . . . Parts Rejected 3 | . . . . 1 . . . . 1 . . . . . . . . 1 . . . . . . Parts Fused 2 | . . . . 1 . . . . . . . . . . . . . 1 . . . . . . Data Loss (minor) 40 | . 2 11 . 3 1 1 . . . 1 1 1 2 . . 5 5 2 1 4 . . . . Data Loss (major) 18 | . 2 5 . . 1 . . . . 2 . . 2 . . 2 1 1 . 2 . . . . Misfires 22 | . 2 3 . 2 . . . . 1 . . . . . . 5 4 3 . 2 . . . . Alerts 9 | . . 2 . . 1 1 . . . . . . 1 . . 2 . 1 . 1 . . . . Weapon Failures 14 | . . 2 . . . . . . . . . . . . . 3 5 3 . 1 . . . . Overload Shots 38 | . . . . 13 2 . . . . 16 3 . 4 . . . . . . . . . . . Effects 5 | . . . . 3 . . . . . 1 1 . . . . . . . . . . . . . Energy Bleed 3 | . . . . 3 . . . . . . . . . . . . . . . . . . . . Heat Surge 2 | . . . . . . . . . . 1 1 . . . . . . . . . . . . . Overflow Damage 1416 | . . 22 391 333 55 2 . . 17 32 . . 33 . . 41 10 . 191 6 283 . . . Projectiles 375 | . . 22 20 316 . . . . 6 1 . . . . . . 10 . . . . . . . Explosions 474 | . . . 29 17 55 2 . . . 18 . . 23 . . 41 . . . 6 283 . . . Melee 567 | . . . 342 . . . . . 11 13 . . 10 . . . . . 191 . . . . . Knockbacks 11 | . 5 3 . 1 . . . . 1 . . . . . . . . . . . 1 . . . Impact 2 | . . . . 1 . . . . 1 . . . . . . . . . . . . . . . Kinetic 9 | . 5 3 . . . . . . . . . . . . . . . . . . 1 . . . Secondary . | . . . . . . . . . . . . . . . . . . . . . . . . . Self-Inflicted Damage 858 | . . . . 49 . 30 . . 109 . . . 179 . . 211 . . . 9 257 . . 14 Shots 14 | . . . . 1 . 1 . . 2 . . . 2 . . 3 . . . 1 4 . . . Rammed 22 | 1 7 . 8 . . . . . . . . . . . . . . . . . . . . 6 Targets Rammed 48 | 1 7 . 13 4 . . . . 10 3 . . 2 . . . . . . . 1 . 1 6 Kicked 24 | . . . 3 4 . . . . 10 3 . . 2 . . . . . . . 1 . 1 . Crushed 2 | . . . 2 . . . . . . . . . . . . . . . . . . . . . Highest Temperature 495 | 170 192 241 324 182 105 7 . 141 199 385 495 344 278 . . 238 260 155 254 208 302 460 . 480 Average Temperature 92 | 76 32 61 79 40 35 3 . 87 77 117 149 119 101 . . 60 114 74 117 91 119 155 . 216 Received Heat Transfer 3038 | . 84 51 729 264 81 63 . 253 372 228 . 9 184 . . 354 45 . . . 72 102 . 147 Effects 10 | . . . 2 . . . . . . 3 . 1 1 . . . . . . . . . . 3 Shutdowns 1 | . . . . . . . . . . . . . . . . . . . . . . . . 1 Energy Bleed 2 | . . . 1 . . . . . . . . 1 . . . . . . . . . . . . Interference 5 | . . . 1 . . . . . . 3 . . 1 . . . . . . . . . . . Matter Decay 1 | . . . . . . . . . . . . . . . . . . . . . . . . 1 Short Circuit 1 | . . . . . . . . . . . . . . . . . . . . . . . . 1 Siege Activations . | . . . . . . . . . . . . . . . . . . . . . . . . . Martial Activations . | . . . . . . . . . . . . . . . . . . . . . . . . . Shielding Activations 1 | . . . . . . . . . . . . . . . . . . . . . 1 . . . Total Turns 63 | . . . . . . . . . . . . . . . . . . . . . 63 . . . Longest Duration 63 | . . . . . . . . . . . . . . . . . . . . . 63 . . . Robots Disrupted . | . . . . . . . . . . . . . . . . . . . . . . . . . Combat Hostiles . | . . . . . . . . . . . . . . . . . . . . . . . . . Robots Corrupted 3 | . . . . . . . . . 1 . . . 1 . . . . . . . 1 . . . Combat Hostiles 1 | . . . . . . . . . . . . . . . . . . . . . 1 . . . Parts Fried 7 | . . . . . . . . 1 1 1 . . 3 . . . . . . . 1 . . . Impact Corruptions 3 | . . . . . . . . . 1 1 . . 1 . . . . . . . . . . . Robots Melted 10 | . . 1 . 7 . . . . 2 . . . . . . . . . . . . . . . Combat Hostiles 9 | . . 1 . 6 . . . . 2 . . . . . . . . . . . . . . . Parts Melted 38 | 1 . 1 1 13 . . . . 6 7 . 3 3 . . . . . . . 2 1 . . Heat Transferred 10990 | 407 111 333 1480 100 . . . . 1600 2065 459 1221 925 . . 250 . . . . 744 925 . 370 Parts Sabotaged . | . . . . . . . . . . . . . . . . . . . . . . . . . Parts Stolen . | . . . . . . . . . . . . . . . . . . . . . . . . . Parts Stripped . | . . . . . . . . . . . . . . . . . . . . . . . . . Power Chain Reactions 1 | . . . . . . . . . . . . . . . . . . . . . 1 . . . Alert | -11 -10 -10 -8 -7 -7 -7 -7 -6 -6 -6 -6 -6 -6 -5 -5 -5 -5 -5 -5 -4 -4 -4 -4 -4 ------- Run | Yrd Mat Sub Mat Fac Low Low Zio Pro Fac Ext Cet Arc Hub Fac Was Fac Upp Upp Zhi Pro Fac Upp Upp War Maximum Alert Level 5 | . . . 1 2 . . . . . 2 1 1 5 3 1 3 . . . . 2 . . . Low Security (%) 57 | 100 100 . 61 50 . . . . 100 43 71 66 3 . . 67 . . . . 40 . . . Level 1 21 | . . . 38 17 . . . . . 45 28 33 8 . 100 10 . . . . 15 . . . Level 2 9 | . . . . 32 . . . . . 10 . . 6 . . 4 . . . . 44 . . . Level 3 3 | . . . . . . . . . . . . . 11 100 . 17 . . . . . . . . Level 4 1 | . . . . . . . . . . . . . 18 . . . . . . . . . . . Level 5 5 | . . . . . . . . . . . . . 52 . . . . . . . . . . . High Security . | . . . . . . . . . . . . . . . . . . . . . . . . . Max Security . | . . . . . . . . . . . . . . . . . . . . . . . . . Peak Influence 1897 | 10 78 . 397 697 . . . . 102 440 257 241 1897 923 316 907 . . . . 600 . . . Initial 923 | . . . 72 93 . . . . . 27 197 75 32 923 316 179 . . . . . . . . Average 311 | 1 25 . 171 267 . . . . 38 255 183 170 1279 913 294 270 . . . . 326 . . . Influence Increases 11601 | 25 354 464 1211 1287 175 125 . 224 563 1036 370 238 2683 . . 1338 105 80 15 110 1058 140 . . Destroy 0b10 Robot/C 5480 | . 220 280 760 800 140 100 . 140 300 520 160 80 840 . . 460 60 60 . 100 320 140 . . Destroy 0b10 Robot/NC 655 | 25 45 . 130 65 . . . . 55 30 10 15 125 . . 85 . . 15 . 55 . . . Destroy Leader 1198 | . 60 30 188 210 20 10 . 20 78 74 . . 232 . . 150 . 20 . 10 96 . . . Allied During Kill 1460 | . . 49 8 . . . . 64 40 251 170 95 783 . . . . . . . . . . . Successful Hack 243 | . 27 . 26 30 . . . . 4 . . . . . . 90 . . . . 66 . . . Disable Machine 1230 | . . . 30 105 . . . . 45 120 15 45 345 . . 300 . . . . 225 . . . Destroy Structure 1065 | . 2 . 69 62 . . . . 41 41 15 3 328 . . 208 . . . . 296 . . . Partial Spotted 30 | . . . . . . . . . . . . . . . . 30 . . . . . . . . Lose Combat Pursuer 240 | . . 105 . 15 15 15 . . . . . . 30 . . 15 45 . . . . . . . Influence Decreases 11601 | 25 348 331 1145 801 635 356 . 224 506 740 534 334 891 982 647 705 690 345 54 110 461 637 100 . Entered New Map 3141 | . . 4 67 112 257 45 . . . 30 156 114 61 962 587 77 330 59 39 . . 222 19 . Time Decay 6922 | 25 348 207 698 499 368 301 . 224 438 580 198 180 580 20 40 538 350 286 15 110 421 415 81 . Lost Part 310 | . . . 20 40 10 10 . . 50 30 . . 30 . 20 50 10 . . . 40 . . . Lost Ally 778 | . . 120 60 . . . . . 18 100 180 40 220 . . 40 . . . . . . . . Purge Threat 450 | . . . 300 150 . . . . . . . . . . . . . . . . . . . . Squads Dispatched 62 | . 3 . 3 18 . . . . 6 3 . . 12 . . 10 . . . . 7 . . . Investigation 10 | . 1 . . 6 . . . . . 3 . . . . . . . . . . . . . . Extermination 17 | . . . . 5 . . . . 3 . . . 4 . . 3 . . . . 2 . . . Reinforcement 29 | . 2 . 3 6 . . . . 3 . . . 6 . . 6 . . . . 3 . . . Assault 5 | . . . . 1 . . . . . . . . 2 . . . . . . . 2 . . . Garrison 1 | . . . . . . . . . . . . . . . . 1 . . . . . . . . Intercept . | . . . . . . . . . . . . . . . . . . . . . . . . . Searches Triggered . | . . . . . . . . . . . . . . . . . . . . . . . . . Construction Impeded 10 | . . . 1 1 . . . . 1 . . . 1 . . 4 . . . . 2 . . . Haulers Reinforced 6 | . . . . 2 . . . . 2 . . . 1 . . . . . . . 1 . . . Active Scanning Responses . | . . . . . . . . . . . . . . . . . . . . . . . . . Cargo Convoy Interrupts . | . . . . . . . . . . . . . . . . . . . . . . . . . Stealth | -11 -10 -10 -8 -7 -7 -7 -7 -6 -6 -6 -6 -6 -6 -5 -5 -5 -5 -5 -5 -4 -4 -4 -4 -4 --------- Run | Yrd Mat Sub Mat Fac Low Low Zio Pro Fac Ext Cet Arc Hub Fac Was Fac Upp Upp Zhi Pro Fac Upp Upp War Distress Signals 16 | . . . 1 4 . . . . 2 . 2 . 3 . . 1 . . . . 3 . . . Communications Jammed . | . . . . . . . . . . . . . . . . . . . . . . . . . Distress Signals . | . . . . . . . . . . . . . . . . . . . . . . . . . Times Spotted 417 | . 16 28 68 52 8 6 . 6 18 28 8 12 48 . 3 32 4 3 . 6 36 6 . 29 Peak Tracking Total 29 | . 3 4 6 4 4 4 . 4 4 5 5 1 5 . 3 10 4 2 . 5 10 3 . 29 Tactical Retreats 11 | . . 1 . 1 1 1 . . . . . . 2 . . 1 2 . . . . . . 2 Traps | -11 -10 -10 -8 -7 -7 -7 -7 -6 -6 -6 -6 -6 -6 -5 -5 -5 -5 -5 -5 -4 -4 -4 -4 -4 ------- Run | Yrd Mat Sub Mat Fac Low Low Zio Pro Fac Ext Cet Arc Hub Fac Was Fac Upp Upp Zhi Pro Fac Upp Upp War Traps Triggered 24 | . 4 1 1 5 . . . . . 5 . . 1 1 . 1 2 . . . 1 . . 2 Indirectly . | . . . . . . . . . . . . . . . . . . . . . . . . . Trap Hack Attempts . | . . . . . . . . . . . . . . . . . . . . . . . . . Triggered . | . . . . . . . . . . . . . . . . . . . . . . . . . Disarmed . | . . . . . . . . . . . . . . . . . . . . . . . . . Reprogrammed . | . . . . . . . . . . . . . . . . . . . . . . . . . Reused . | . . . . . . . . . . . . . . . . . . . . . . . . . Traps Extracted . | . . . . . . . . . . . . . . . . . . . . . . . . . Installed . | . . . . . . . . . . . . . . . . . . . . . . . . . Triggered . | . . . . . . . . . . . . . . . . . . . . . . . . . Machines | -11 -10 -10 -8 -7 -7 -7 -7 -6 -6 -6 -6 -6 -6 -5 -5 -5 -5 -5 -5 -4 -4 -4 -4 -4 ---------- Run | Yrd Mat Sub Mat Fac Low Low Zio Pro Fac Ext Cet Arc Hub Fac Was Fac Upp Upp Zhi Pro Fac Upp Upp War Machines Disabled 89 | . . 2 2 7 . . . . 3 9 1 3 23 . . 20 . 2 . . 15 2 . . Max in Single Turn 13 | . . 1 1 2 . . . . 2 1 1 . 5 . . 13 . 1 . . 6 1 . . Garrison Access 1 | . . . . . . . . . . . . . . . . 1 . . . . . . . . Network Hub 3 | . . . . . . . . . . . . . 3 . . . . . . . . . . . Machines Repaired . | . . . . . . . . . . . . . . . . . . . . . . . . . Machines Dismantled . | . . . . . . . . . . . . . . . . . . . . . . . . . Machines Sabotaged . | . . . . . . . . . . . . . . . . . . . . . . . . . Overloaded Fab Kills . | . . . . . . . . . . . . . . . . . . . . . . . . . Hacking | -11 -10 -10 -8 -7 -7 -7 -7 -6 -6 -6 -6 -6 -6 -5 -5 -5 -5 -5 -5 -4 -4 -4 -4 -4 --------- Run | Yrd Mat Sub Mat Fac Low Low Zio Pro Fac Ext Cet Arc Hub Fac Was Fac Upp Upp Zhi Pro Fac Upp Upp War Machines Accessed 72 | . 9 2 13 17 . 1 . . 5 3 . . . . . 8 1 2 4 . 4 2 1 . Terminals 27 | . 6 . 8 9 . . . . . 3 . . . . . . . . . . . 1 . . Fabricators 10 | . . . . 4 . . . . 1 . . . . . . 4 . . . . 1 . . . Repair Stations 8 | . 1 . 2 1 . . . . 1 . . . . . . 1 . . . . 2 . . . Recycling Units 8 | . 2 . 2 2 . . . . 1 . . . . . . 1 . . . . . . . . Scanalyzers 6 | . . . 1 1 . . . . 2 . . . . . . 1 . . . . 1 . . . Garrison Access 1 | . . . . . . . . . . . . . . . . 1 . . . . . . . . Total Hacks 225 | . 24 4 47 46 . 1 . . 12 5 . . . . . 35 1 6 16 . 22 5 1 . Successful 137 | . 11 4 33 27 . 1 . . 8 . . . . . . 16 1 6 16 . 8 5 1 . Failed 85 | . 13 . 13 19 . . . . 3 5 . . . . . 19 . . . . 13 . . . Catastrophic 16 | . 1 . . 5 . . . . 1 2 . . . . . 4 . . . . 3 . . . Database Lockouts 3 | . . . 1 . . . . . 1 . . . . . . . . . . . 1 . . . Manual 174 | . 9 . 13 30 . . . . 25 33 1 . 36 . . 21 . . . . 6 . . . Terminals 80 | . 16 . 30 25 . . . . . 5 . . . . . . . . . . . 4 . . Fabricators 33 | . . . . 11 . . . . 3 . . . . . . 16 . . . . 3 . . . Repair Stations 36 | . 4 . 10 2 . . . . 1 . . . . . . 3 . . . . 16 . . . Recycling Units 15 | . 4 . 4 3 . . . . 2 . . . . . . 2 . . . . . . . . Scanalyzers 29 | . . . 3 5 . . . . 6 . . . . . . 12 . . . . 3 . . . Garrison Access 2 | . . . . . . . . . . . . . . . . 2 . . . . . . . . Terminal Hacks 59 | . 6 4 14 5 . 1 . . . . . . . . . . 1 6 16 . . 5 1 . Record 17 | . . 3 . . . . . . . . . . . . . . . 5 5 . . 4 . . Part Schematic 5 | . . . 2 . . . . . . . . . . . . . . . 3 . . . . . Robot Analysis 6 | . 2 . . . . . . . . . . . . . . . . . 4 . . . . . Prototype ID Bank 9 | . 1 . 3 1 . . . . . . . . . . . . . . 4 . . . . . Open Door 5 | . . . . . . 1 . . . . . . . . . . 1 1 . . . 1 1 . Branch Access Points 2 | . . . 1 1 . . . . . . . . . . . . . . . . . . . . Terminal Index 1 | . . . . 1 . . . . . . . . . . . . . . . . . . . . Unreport Threat 3 | . . . 2 1 . . . . . . . . . . . . . . . . . . . . Locate Traps 3 | . . . 3 . . . . . . . . . . . . . . . . . . . . . Recall Investigation 1 | . 1 . . . . . . . . . . . . . . . . . . . . . . . Hauler Manifests 3 | . 1 . 1 1 . . . . . . . . . . . . . . . . . . . . Registered Components 2 | . 1 . 1 . . . . . . . . . . . . . . . . . . . . . Zone Layout 1 | . . . 1 . . . . . . . . . . . . . . . . . . . . . Proto ID Catalog 1 | . . 1 . . . . . . . . . . . . . . . . . . . . . . Fabricator Hacks 12 | . . . . 6 . . . . 2 . . . . . . 3 . . . . 1 . . . Network Status 1 | . . . . . . . . . . . . . . . . 1 . . . . . . . . Load Schematic 7 | . . . . 5 . . . . 1 . . . . . . 1 . . . . . . . . Build 4 | . . . . 1 . . . . 1 . . . . . . 1 . . . . 1 . . . Repair Station Hacks 21 | . 3 . 10 1 . . . . . . . . . . . 2 . . . . 5 . . . Scan Component 13 | . 2 . 5 1 . . . . . . . . . . . 1 . . . . 4 . . . Repair 8 | . 1 . 5 . . . . . . . . . . . . 1 . . . . 1 . . . Recycling Unit Hacks 9 | . 1 . 3 2 . . . . 2 . . . . . . 1 . . . . . . . . Retrieve Components 9 | . 1 . 3 2 . . . . 2 . . . . . . 1 . . . . . . . . Scanalyzer 21 | . . . 3 5 . . . . 4 . . . . . . 7 . . . . 2 . . . Insert Component 8 | . . . 1 1 . . . . 2 . . . . . . 3 . . . . 1 . . . Analyze 7 | . . . 2 1 . . . . 1 . . . . . . 3 . . . . . . . . Retrieve Study 6 | . . . . 3 . . . . 1 . . . . . . 1 . . . . 1 . . . Garrison Access Hacks 1 | . . . . . . . . . . . . . . . . 1 . . . . . . . . Seal Access 1 | . . . . . . . . . . . . . . . . 1 . . . . . . . . Unauthorized Hacks 14 | . 1 . 3 8 . . . . . . . . . . . 2 . . . . . . . . Terminals 8 | . 1 . 3 4 . . . . . . . . . . . . . . . . . . . . Botnet 7 | . 1 . 3 3 . . . . . . . . . . . . . . . . . . . . Operators 1 | . . . . 1 . . . . . . . . . . . . . . . . . . . . Fabricators 4 | . . . . 3 . . . . . . . . . . . 1 . . . . . . . . Prioritize 1 | . . . . . . . . . . . . . . . . 1 . . . . . . . . Recompile 3 | . . . . 3 . . . . . . . . . . . . . . . . . . . . Repair Stations . | . . . . . . . . . . . . . . . . . . . . . . . . . Recycling Units 2 | . . . . 1 . . . . . . . . . . . 1 . . . . . . . . Recyclers 2 | . . . . 1 . . . . . . . . . . . 1 . . . . . . . . Scanalyzers . | . . . . . . . . . . . . . . . . . . . . . . . . . Garrison Access . | . . . . . . . . . . . . . . . . . . . . . . . . . Data Cores Recovered 2 | . 1 . . 1 . . . . . . . . . . . . . . . . . . . . Used 2 | . 1 . . 1 . . . . . . . . . . . . . . . . . . . . Hacking Detections 46 | . 6 . 11 14 . . . . 4 3 1 . . . . 4 . . . . 2 1 . . Full Trace Events 5 | . 1 . . 3 . . . . . 1 . . . . . . . . . . . . . . Feedback Events 2 | . . . . 2 . . . . . . . . . . . . . . . . . . . . Corruption 2 | . . . . 2 . . . . . . . . . . . . . . . . . . . . Feedback Blocked . | . . . . . . . . . . . . . . . . . . . . . . . . . Robot Schematics Acquired 3 | . . . . . . . . . . 3 . . . . . . . . . . . . . . Robots Built . | . . . . . . . . . . . . . . . . . . . . . . . . . Authchips . | . . . . . . . . . . . . . . . . . . . . . . . . . Time . | . . . . . . . . . . . . . . . . . . . . . . . . . Total Robot Build Rating . | . . . . . . . . . . . . . . . . . . . . . . . . . Part Schematics Acquired 67 | . . . 3 1 . . . . 34 10 . . 13 . . 3 . . 3 . . . . . Parts Built 6 | . . . . 1 . . . . 2 . . . . . . 2 . . . . 1 . . . Authchips 3 | . . . . 1 . . . . 1 . . . . . . 1 . . . . . . . . Time 193 | . . . . 25 . . . . 76 . . . . . . 23 . . . . 69 . . . Total Part Build Rating 30 | . . . . 1 . . . . 10 . . . . . . 10 . . . . 9 . . . Part Studies Acquired 6 | . . . . 3 . . . . 1 . . . . . . 1 . . . . 1 . . . Parts Repaired 8 | . 1 . 5 . . . . . . . . . . . . 1 . . . . 1 . . . Time 345 | . 26 . 166 . . . . . . . . . . . . 99 . . . . 54 . . . Parts Recycled . | . . . . . . . . . . . . . . . . . . . . . . . . . Recycled Matter . | . . . . . . . . . . . . . . . . . . . . . . . . . Retrieved Matter . | . . . . . . . . . . . . . . . . . . . . . . . . . Retrieved Components 33 | . . . 24 8 . . . . . . . . . . . 1 . . . . . . . . Parts Scanalyzed 6 | . . . 1 1 . . . . 1 . . . . . . 3 . . . . . . . . Part Schematics Acquired 6 | . . . 1 1 . . . . 1 . . . . . . 3 . . . . . . . . Parts Damaged 1 | . . . . . . . . . 1 . . . . . . . . . . . . . . . Bothacking | -11 -10 -10 -8 -7 -7 -7 -7 -6 -6 -6 -6 -6 -6 -5 -5 -5 -5 -5 -5 -4 -4 -4 -4 -4 ------------ Run | Yrd Mat Sub Mat Fac Low Low Zio Pro Fac Ext Cet Arc Hub Fac Was Fac Upp Upp Zhi Pro Fac Upp Upp War Used RIF Installer . | . . . . . . . . . . . . . . . . . . . . . . . . . Robots Hacked . | . . . . . . . . . . . . . . . . . . . . . . . . . Non-combat . | . . . . . . . . . . . . . . . . . . . . . . . . . Combat . | . . . . . . . . . . . . . . . . . . . . . . . . . Robot Hacks Applied . | . . . . . . . . . . . . . . . . . . . . . . . . . Relay Couplers Released 3 | . . . . . . . . . . . . . 3 . . . . . . . . . . . Programmers 3 | . . . . . . . . . . . . . 3 . . . . . . . . . . . Fabnet Peak Effective % . | . . . . . . . . . . . . . . . . . . . . . . . . . Robots Rewired 8 | . . . . . . . . . . 8 . . . . . . . . . . . . . . Allies Hacked . | . . . . . . . . . . . . . . . . . . . . . . . . . Hacks Repelled . | . . . . . . . . . . . . . . . . . . . . . . . . . Allies | -11 -10 -10 -8 -7 -7 -7 -7 -6 -6 -6 -6 -6 -6 -5 -5 -5 -5 -5 -5 -4 -4 -4 -4 -4 -------- Run | Yrd Mat Sub Mat Fac Low Low Zio Pro Fac Ext Cet Arc Hub Fac Was Fac Upp Upp Zhi Pro Fac Upp Upp War Total Allies 46 | . . 9 . . . . 4 . 1 20 5 . 5 . . 2 . . . . . . . . Largest Group 19 | . . 5 3 . . . 4 4 4 19 14 10 12 . . 2 . . . . . . . . Highest-Rated Group 982 | . . 95 57 . . . 150 150 150 811 842 806 982 . . 102 . . . . . . . . Highest-Rated Ally 159 | . . 20 19 . . . 38 38 38 159 159 159 96 . . 51 . . . . . . . . Zionite Dispatches 5 | . . . . . . . . . 1 1 . . 2 . . 1 . . . . . . . . Heavy 1 | . . . . . . . . . . . . . 1 . . . . . . . . . . . Light 1 | . . . . . . . . . . . . . 1 . . . . . . . . . . . Hacker 1 | . . . . . . . . . . . . . . . . 1 . . . . . . . . Explosive Resupply 1 | . . . . . . . . . . 1 . . . . . . . . . . . . . . Infowar Resupply 1 | . . . . . . . . . 1 . . . . . . . . . . . . . . . Total Orders 13 | . . . . . . . . . 1 1 7 2 2 . . . . . . . . . . . STAY 7 | . . . . . . . . . . . 4 1 2 . . . . . . . . . . . ROAM 1 | . . . . . . . . . . . 1 . . . . . . . . . . . . . FOLLOW 3 | . . . . . . . . . . . 2 1 . . . . . . . . . . . . DROP 2 | . . . . . . . . . 1 1 . . . . . . . . . . . . . . Ally Attacks 405 | . . 45 15 . . . . 36 6 75 59 22 143 . . 4 . . . . . . . . Total Damage 11612 | . . 663 188 . . . . 1380 70 2011 1643 495 5089 . . 73 . . . . . . . . Kills 78 | . . 10 2 . . . . 5 1 13 10 3 34 . . . . . . . . . . . Allies Corrupted 1 | . . . . . . . . . . . . . 1 . . . . . . . . . . . Allies Melted 1 | . . . . . . . . . . 1 . . . . . . . . . . . . . . Intel | -11 -10 -10 -8 -7 -7 -7 -7 -6 -6 -6 -6 -6 -6 -5 -5 -5 -5 -5 -5 -4 -4 -4 -4 -4 ------- Run | Yrd Mat Sub Mat Fac Low Low Zio Pro Fac Ext Cet Arc Hub Fac Was Fac Upp Upp Zhi Pro Fac Upp Upp War Active Infowar (turns) 25525 | 10 1156 826 3776 1700 849 873 2325 510 1305 1619 406 361 1695 55 99 1532 786 633 250 646 1132 1539 1096 346 Optics 12961 | . . . 3748 177 . . . . . . . . 922 55 99 1532 786 633 250 646 1132 1539 1096 346 Sensors 11758 | . . . . . . . . . 893 1619 406 361 1138 55 99 1269 781 608 248 644 778 1433 1096 330 Terrain 3766 | . . . 1 . . . . . . . . . . . . 786 646 633 250 646 804 . . . Structural 1 | . . . 1 . . . . . . . . . . . . . . . . . . . . . Traps 1 | . . . 1 . . . . . . . . . . . . . . . . . . . . . Seismic 12114 | 10 1156 826 3176 1677 849 873 2325 510 229 . . . 483 . . . . . . . . . . . Jamming 1538 | . . . . 21 . . . . 183 . . . . 54 2 476 . . . . 213 589 . . Robot Analysis Total 6 | . 2 . . . . . . . . . . . . . . . . . 4 . . . . . Derelict Logs Recovered 11 | . . 1 . . . 1 1 . . . . . . . . . 2 1 . 1 . 2 2 . Drone Launches 3 | . . . . . . . . . . . . . . . . . . . . . . . . 3 Drone Recoveries . | . . . . . . . . . . . . . . . . . . . . . . . . . Zionite Intel Received 23 | . . . . . . . . . 6 6 . . 6 . . 4 . . . . 1 . . . Branch Access 3 | . . . . . . . . . . 1 . . 1 . . 1 . . . . . . . . Emergency Access 3 | . . . . . . . . . . 1 . . 1 . . 1 . . . . . . . . Guard Positions 2 | . . . . . . . . . 1 . . . . . . 1 . . . . . . . . Prototype Stockpiles 1 | . . . . . . . . . 1 . . . . . . . . . . . . . . . Component Schematics 2 | . . . . . . . . . 1 . . . 1 . . . . . . . . . . . Prototype Schematics 3 | . . . . . . . . . 2 1 . . . . . . . . . . . . . . Unaware Schematics 1 | . . . . . . . . . . 1 . . . . . . . . . . . . . . Unaware Analyses 3 | . . . . . . . . . . 1 . . 2 . . . . . . . . . . . Active Terminals 2 | . . . . . . . . . . . . . . . . 1 . . . . 1 . . . Active Garrisons 2 | . . . . . . . . . 1 . . . 1 . . . . . . . . . . . Depthwide Sectors/0 1 | . . . . . . . . . . 1 . . . . . . . . . . . . . . Exploration | -11 -10 -10 -8 -7 -7 -7 -7 -6 -6 -6 -6 -6 -6 -5 -5 -5 -5 -5 -5 -4 -4 -4 -4 -4 ------------- Run | Yrd Mat Sub Mat Fac Low Low Zio Pro Fac Ext Cet Arc Hub Fac Was Fac Upp Upp Zhi Pro Fac Upp Upp War Turns Passed 30183 | 146 1157 3858 3778 2287 849 873 2325 595 1843 1781 406 361 1780 55 99 1532 786 633 250 646 1132 1539 1096 376 Spaces Moved 18265 | 61 581 1977 1777 1454 665 607 1538 369 1132 860 156 46 1063 51 81 966 603 517 192 454 638 1235 938 304 Core 30 | 3 . . . . . . . . . . . . . . . . . . . . . . . 27 Treads 4138 | 58 581 1977 1522 . . . . . . . . . . . . . . . . . . . . . Legs 14086 | . . . 255 1454 665 607 1538 369 1132 860 156 46 1063 51 81 966 603 517 192 454 638 1235 938 266 Wheels . | . . . . . . . . . . . . . . . . . . . . . . . . . Hover . | . . . . . . . . . . . . . . . . . . . . . . . . . Flight 11 | . . . . . . . . . . . . . . . . . . . . . . . . 11 Fastest Speed 49 | 50 160 160 130 115 115 120 122 124 102 117 190 190 104 103 100 100 105 105 105 105 105 116 116 49 Average Speed 132 | 154 160 163 163 124 119 127 145 129 128 148 190 190 117 103 100 104 105 105 105 105 113 116 116 107 Slowest Speed 630 | 160 160 250 260 185 185 193 192 196 630 190 190 190 194 103 105 105 105 105 105 105 178 116 116 116 Overloaded Moves . | . . . . . . . . . . . . . . . . . . . . . . . . . Propulsion Burnouts . | . . . . . . . . . . . . . . . . . . . . . . . . . Robots Hopped 2 | . . . . . . . . . . . . . . . . . . . . . . . . 2 Potential Cave-ins . | . . . . . . . . . . . . . . . . . . . . . . . . . Cave-ins Triggered . | . . . . . . . . . . . . . . . . . . . . . . . . . Teleports 1 | . . . . . . . . . . . . . . . . . . . . . 1 . . . Exploration Rate (%) 63 | 4 98 93 93 54 77 72 89 45 30 86 59 63 84 2 85 33 75 62 61 64 28 97 66 66 Regions Visited 24 Branch Regions 16 Pre-discovered Areas 15 | . . 1 . . . 1 . . . 10 . . . . . . . . 3 . . . . . Known Exits Taken 16 | . . . . 1 . . 1 1 1 1 1 1 1 . . 1 1 1 1 1 1 1 1 . Unknown Exits Taken 6 | 1 1 1 1 . 1 1 . . . . . . . . . . . . . . . . . . Scrap Searched 32 | . . 5 . . 2 3 4 1 . . . . . . . . 4 3 . 1 . 4 5 . Spaces Dug 166 | . . 6 21 27 . 18 . . 15 2 . . 14 . . 21 2 4 . 4 29 2 . 1 Terrain Destroyed 1169 | . . 6 77 68 38 48 . . 56 19 . 2 446 . . 118 10 8 . 44 192 36 . 1 Melee 32 | . . 6 11 . . . . . 6 . . . . . . . . . . . 6 2 . 1 Projectile 325 | . . . 24 44 1 . . . 23 11 . 2 77 . . 69 8 8 . 6 52 . . . AOE 809 | . . . 42 24 37 48 . . 27 8 . . 369 . . 49 . . . 38 133 34 . . Terrain Rammed . | . . . . . . . . . . . . . . . . . . . . . . . . . Walls Destroyed . | . . . . . . . . . . . . . . . . . . . . . . . . . Machines Disabled . | . . . . . . . . . . . . . . . . . . . . . . . . . Actions | -11 -10 -10 -8 -7 -7 -7 -7 -6 -6 -6 -6 -6 -6 -5 -5 -5 -5 -5 -5 -4 -4 -4 -4 -4 --------- Run | Yrd Mat Sub Mat Fac Low Low Zio Pro Fac Ext Cet Arc Hub Fac Was Fac Upp Upp Zhi Pro Fac Upp Upp War Total 22630 | 86 730 2502 2404 1816 701 683 1628 460 1377 1259 256 286 1425 54 96 1295 694 571 224 605 896 1300 944 338 Wait 2170 | . 63 324 245 139 17 61 48 59 64 213 71 221 192 . 11 152 31 19 1 129 94 8 1 7 Move 18238 | 60 580 1976 1776 1453 664 606 1537 368 1131 859 155 45 1062 51 80 965 602 516 191 453 637 1234 937 300 Hop 2 | . . . . . . . . . . . . . . . . . . . . . . . . 2 Pick Up 217 | 5 16 43 44 21 2 1 10 1 16 3 6 . 10 1 . 15 1 2 3 . 10 6 1 . Fast Attach 109 | 6 1 6 17 11 1 1 10 1 17 5 1 . 6 . . 3 1 1 5 . 12 1 . 3 Attach 70 | 1 1 6 10 9 3 . 3 . 10 5 1 . 5 2 . 5 1 . 1 . 5 . . 2 Detach 13 | . . . 1 1 . . . . 2 2 . . 2 . . . . . 1 . 2 2 . . Swap 395 | . 9 17 69 30 2 2 1 14 27 28 7 6 33 . 5 45 7 7 6 11 37 23 3 6 Drop 274 | . 11 48 56 16 1 . 19 5 26 8 8 . 21 . . 12 . 2 7 . 19 8 1 6 Fire 908 | 13 42 47 141 132 11 12 . 10 62 51 7 14 92 . . 96 51 24 . 12 70 16 . 5 Melee 100 | . . 32 32 . . . . 2 12 1 . . . . . . . . 9 . 9 2 . 1 Ram 6 | . . . . . . . . . . . . . . . . . . . . . . . . 6 Kick 24 | . . . 3 4 . . . . 10 3 . . 2 . . . . . . . 1 . 1 . Crush 18 | 1 7 . 10 . . . . . . . . . . . . . . . . . . . . . Escape Stasis 27 | . . . . . . . . . . 25 . . . . . 2 . . . . . . . . Rewire 56 | . . . . . . . . . . 56 . . . . . . . . . . . . . . Trap . | . . . . . . . . . . . . . . . . . . . . . . . . . Miscellaneous 3 | . . 3 . . . . . . . . . . . . . . . . . . . . . . Route ------- -11/Scrapyard -10/Materials (discovered 5 exits: [*Mat x3] / [*Min] / *Sub) -10/Subcaves (discovered 3 exits: *Mat x2 / [*Rec]) -8/Materials (discovered 2 exits: *Fac x2) -7/Factory (discovered 4 exits: *Fac x2 / *Low x2) -7/Lower Caves -7/Lower Caves (discovered 2 exits: *Fac / [*Zio]) -7/Zion -6/Proximity Caves -6/Factory -6/Extension (discovered 2 exits: *Fac / *Cet) -6/Cetus (discovered 2 exits: *Fac / *Arc) -6/Archives -6/Hub_04(d) (discovered 3 exits: *Fac x3) -5/Factory -5/Waste -5/Factory (discovered 3 exits: *Fac / *Upp x2) -5/Upper Caves -5/Upper Caves (discovered 2 exits: Fac / *Zhi) -5/Zhirov -4/Proximity Caves -4/Factory (discovered 2 exits: *Res / *Upp) -4/Upper Caves -4/Upper Caves (discovered 2 exits: Res / *War) -4/Warlord History --------- Turn | Location | Event 30 | -11/Scrapyard | Discovered new exit (range 16) 147 | -11/Scrapyard | Entered Materials 317 | -10/Materials | Build established: Mutant 393 | -10/Materials | Discovered new exit (range 11) 570 | -10/Materials | Discovered new exit (range 15) 762 | -10/Materials | Discovered new exit (range 16) 890 | -10/Materials | Discovered new exit (range 9) 1234 | -10/Materials | Discovered new exit (range 9) 1261 | -10/Materials | Repaired Lgt. Cannon 1304 | -10/Materials | Entered Subcaves 1305 | -10/Subcaves | Approached by a straggling Scientist 1324 | -10/Subcaves | Shifting Twisted Machinery released Flamer 1440 | -10/Subcaves | Shifting Twisted Machinery released Mak. Power Source 1500 | -10/Subcaves | Discovered new exit (range 7) 1604 | -10/Subcaves | Ambushed by angry Subdweller bent on revenge 2133 | -10/Subcaves | Disturbed a concealed Subdweller 2322 | -10/Subcaves | Visited triangular shrine 2327 | -10/Subcaves | Learned Materials interactive machine intel 2332 | -10/Subcaves | Found Prototype Device 2332 | -10/Subcaves | Identified V3-11A's Pendant 2337 | -10/Subcaves | Befriended Subdweller 2735 | -10/Subcaves | Shifting Twisted Machinery released Hvy. Battle Rifle 2805 | -10/Subcaves | Visited Clippyterm 2809 | -10/Subcaves | Learned Factory fabricator intel 2889 | -10/Subcaves | Shifting Twisted Machinery released Mak. Hacking Suite 2944 | -10/Subcaves | A Subdweller sparked back to life 2944 | -10/Subcaves | A Subdweller sparked back to life 2947 | -10/Subcaves | Befriended Subdweller 2947 | -10/Subcaves | Befriended Subdweller 2947 | -10/Subcaves | Befriended Subdweller 3017 | -10/Subcaves | Discovered new exit (range 10) 3037 | -10/Subcaves | Found Prototype Energy Cannon 3052 | -10/Subcaves | Befriended Subdweller 3052 | -10/Subcaves | Befriended Subdweller 3074 | -10/Subcaves | Lost 4 allies 3078 | -10/Subcaves | Discovered new exit (range 11) 3172 | -10/Subcaves | Befriended Subdweller 3192 | -10/Subcaves | Befriended Subdweller 3192 | -10/Subcaves | Befriended Subdweller 3505 | -10/Subcaves | Build established: Derelict-Mutant 3782 | -10/Subcaves | Visited 4L-MR0's lab 3797 | -10/Subcaves | Identified Powered Cannon 3810 | -10/Subcaves | Found Rainbow Chip 4096 | -10/Subcaves | Build established: Mutant 4276 | -10/Subcaves | Learned location of Zion (-7) 4276 | -10/Subcaves | Met a Zionite searching for "candidates" 4475 | -10/Subcaves | Shifting Twisted Machinery released Sub. Beam Cannon 5116 | -10/Subcaves | Core integrity fell below 50% 5162 | -10/Subcaves | Entered Materials 5162 | -8/Materials | Accompanied by 3 allies 5162 | -8/Materials | Evolved 4 slots: Propulsion x2, Utility x2 5163 | -8/Materials | Loaded intel: 19 interactive machine locations 5281 | -8/Materials | Lost 3 allies 6073 | -8/Materials | Build established: Scavenger-Mutant 6144 | -8/Materials | Repaired Hrd. Medium Armor Plating 6177 | -8/Materials | Repaired Spk. Treads 6211 | -8/Materials | Repaired Spk. Treads 6339 | -8/Materials | Discovered new exit (range 14) 7055 | -8/Materials | Build established: Mutant 7666 | -8/Materials | Discovered new exit (range 4) 8118 | -8/Materials | Repaired Imp. Weapon Shielding 8145 | -8/Materials | Repaired Seismic Detector 8153 | -8/Materials | Central database locked down 8535 | -8/Materials | Attached Powered Cannon, gained temporary slot: Power 8604 | -8/Materials | Attached Rainbow Chip, gained temporary slots: Power, Propulsion, Utility, Weapon 8940 | -8/Materials | Entered Factory 8940 | -7/Factory | Evolved 2 slots: Utility x2 8941 | -7/Factory | Loaded intel: 6 fabricator locations 9101 | -7/Factory | Discovered new exit (range 15) 9546 | -7/Factory | Identified exit to Lower Caves 9554 | -7/Factory | Build established: Hacker-Tank 9861 | -7/Factory | Build established: Tank 9926 | -7/Factory | Fabricated Hcp. Storage Unit (x1) 10511 | -7/Factory | Discovered new exit (range 14) 10940 | -7/Factory | First assault squad dispatched 11227 | -7/Factory | Entered Lower Caves 11303 | -7/Lower Caves | Encountered a Warlord checkpoint 11304 | -7/Lower Caves | Spotted B-75 Beast 11602 | -7/Lower Caves | Build established: Hacker-Mutant 12057 | -7/Lower Caves | Discovered new exit (range 12) 12076 | -7/Lower Caves | Entered another Lower Caves area 12077 | -7/Lower Caves | Encountered a Warlord checkpoint 12250 | -7/Lower Caves | Discovered new exit (range 3) 12928 | -7/Lower Caves | Discovered new exit (range 10) 12949 | -7/Lower Caves | Entered Zion 13001 | -7/Zion | System corruption cleaned by Quarantine Array 13203 | -7/Zion | Discovered new exit (range 13) 14116 | -7/Zion | Found CR-A16's Pointy Stick 14153 | -7/Zion | Met Imprinter 14218 | -7/Zion | Given A8's code to call for help 14543 | -7/Zion | Found Prototype Hackware 14543 | -7/Zion | Identified Exp. System Shield 14546 | -7/Zion | Found Prototype Processor 14546 | -7/Zion | Identified Exp. Targeting Computer 14557 | -7/Zion | Found Prototype Processor 14557 | -7/Zion | Identified Exp. Signal Interpreter 14772 | -7/Zion | Found Prototype Processor 14772 | -7/Zion | Identified Exp. Armor Integrity Analyzer 14775 | -7/Zion | Found Prototype Processor 14775 | -7/Zion | Identified Exp. Terrain Scan Processor 14778 | -7/Zion | Found Prototype Processor 14837 | -7/Zion | Build established: Mutant 14977 | -7/Zion | Imprinted 14979 | -7/Zion | Declared Zion's savior 15240 | -7/Zion | Identified exit to Proximity Caves 15274 | -7/Zion | Entered Proximity Caves 15274 | -6/Proximity Caves | Accompanied by 4 allies 15466 | -6/Proximity Caves | Attracted the attention of an 0b10 checkpoint 15666 | -6/Proximity Caves | Spotted B-75 Beast 15691 | -6/Proximity Caves | Allies destroyed B-75 Beast 15825 | -6/Proximity Caves | Discovered new exit (range 9) 15865 | -6/Proximity Caves | Identified exit to Factory 15869 | -6/Proximity Caves | Entered Factory 15869 | -6/Factory | Accompanied by 4 allies 15869 | -6/Factory | Evolved 2 slots: Propulsion x1, Weapon x1 15870 | -6/Factory | Identified exit to Extension 15970 | -6/Factory | Identified Exp. Target Analyzer 15970 | -6/Factory | Central database locked down 16400 | -6/Factory | Spotted B-75 Beast 16433 | -6/Factory | Revealed the true nature of CR-A16's Pointy Stick 16439 | -6/Factory | Destroyed B-75 Beast 16487 | -6/Factory | Lost 9 parts (1p3n3u2w) 16521 | -6/Factory | Retrieved Zion intel report: Component Schematics 16552 | -6/Factory | Retrieved Zion intel report: Guard Positions 16607 | -6/Factory | Retrieved Zion intel report: Prototype Stockpiles 16633 | -6/Factory | Retrieved Zion intel report: Prototype Schematics 16646 | -6/Factory | Retrieved Zion intel report: Prototype Schematics 16781 | -6/Factory | Fabricated Force Rifle? 16782 | -6/Factory | Build established: Scavenger-Gunner 17003 | -6/Factory | Retrieved Zion intel report: Active Garrisons 17004 | -6/Factory | Zion Infowar Resupply teleported in 17190 | -6/Factory | Terminal network hard line cut 17468 | -6/Factory | Build established: Scavenger-Skirmisher 17558 | -6/Factory | Found Launcher Loader 17712 | -6/Factory | Entered Extension 17996 | -6/Extension | Retrieved Zion intel report: Branch Access 17996 | -6/Extension | Identified exit to Cetus 18008 | -6/Extension | Retrieved Zion intel report: Emergency Access 18025 | -6/Extension | Retrieved Zion intel report: Depthwide Sectors/-6 18087 | -6/Extension | Rescued a captive Derelict 18221 | -6/Extension | Rescued a captive Derelict 18225 | -6/Extension | Rescued a captive Derelict 18237 | -6/Extension | Retrieved Zion intel report: Unaware Analyses 18242 | -6/Extension | Enhanced Grunt warped into view, answering call for help 18247 | -6/Extension | Enhanced Grunt warped into view, answering call for help 18417 | -6/Extension | Spotted B-75 Beast 18428 | -6/Extension | Spotted B-75 Beast 18432 | -6/Extension | Destroyed B-75 Beast 18440 | -6/Extension | Allies destroyed B-75 Beast 18462 | -6/Extension | Disrupted transfer network 18521 | -6/Extension | Retrieved Zion intel report: Prototype Schematics 18528 | -6/Extension | Retrieved Zion intel report: Unaware Schematics 18574 | -6/Extension | Rescued A7 18587 | -6/Extension | Rescued a captive Derelict 18588 | -6/Extension | Rescued a captive Derelict 18823 | -6/Extension | Rescued a captive Derelict 18971 | -6/Extension | Zion Explosive Resupply teleported in 18977 | -6/Extension | Found Prototype Launcher 18977 | -6/Extension | Identified Gui. Missile Launcher 19024 | -6/Extension | Build established: Commander-Skirmisher 19125 | -6/Extension | Terminal network hard line cut 19321 | -6/Extension | Rescued a captive Derelict 19333 | -6/Extension | Rescued a captive Derelict 19386 | -6/Extension | Lost 4 allies 19421 | -6/Extension | Discovered new exit (range 10) 19493 | -6/Extension | Entered Cetus 19493 | -6/Cetus | Accompanied by 14 allies (A7) 19498 | -6/Cetus | Acquired a Cetus Manufacturing Module code from A7 19541 | -6/Cetus | Spotted Cetus Guard 19543 | -6/Cetus | Spotted Cetus Guard 19548 | -6/Cetus | Spotted Cetus Guard 19549 | -6/Cetus | Allies destroyed Cetus Guard 19552 | -6/Cetus | Allies destroyed Cetus Guard 19560 | -6/Cetus | Allies destroyed Cetus Guard 19589 | -6/Cetus | Lost 7 allies 19655 | -6/Cetus | Started Cetus Manufacturing Module 19680 | -6/Cetus | Manufactured an Enhanced Grunt 19700 | -6/Cetus | Discovered new exit (range 15) 19705 | -6/Cetus | Manufactured an Enhanced Grunt 19730 | -6/Cetus | Manufactured an Enhanced Grunt 19747 | -6/Cetus | Spotted Cetus Guard 19747 | -6/Cetus | Spotted Cetus Guard 19755 | -6/Cetus | Manufactured an Enhanced Grunt 19758 | -6/Cetus | Spotted Cetus Guard 19761 | -6/Cetus | Allies destroyed Cetus Guard 19764 | -6/Cetus | Spotted Cetus Guard 19770 | -6/Cetus | Allies destroyed Cetus Guard 19780 | -6/Cetus | Manufactured an Enhanced Grunt 19793 | -6/Cetus | Discovered new exit (range 15) 19803 | -6/Cetus | Scared off Revision 17 19878 | -6/Cetus | Build established: Scavenger-Skirmisher 19889 | -6/Cetus | Identified exit to Archives 19899 | -6/Cetus | Entered Archives 19899 | -6/Archives | Accompanied by 10 allies (A7) 20233 | -6/Archives | Discovered new exit (range 14) 20256 | -6/Archives | Identified exit to Hub_04(d) 20260 | -6/Archives | Entered Hub_04(d) 20260 | -6/Hub_04(d) | Accompanied by 7 allies 20315 | -6/Hub_04(d) | Zion Heavy squad teleported in 20365 | -6/Hub_04(d) | Zion Light squad teleported in 20426 | -6/Hub_04(d) | Retrieved Zion intel report: Emergency Access 20531 | -6/Hub_04(d) | Retrieved Zion intel report: Branch Access 20550 | -6/Hub_04(d) | Retrieved Zion intel report: Active Garrisons 20751 | -6/Hub_04(d) | Lost 4 allies 20761 | -6/Hub_04(d) | Discovered new exit (range 11) 20863 | -6/Hub_04(d) | Retrieved Zion intel report: Unaware Analyses 20889 | -6/Hub_04(d) | Discovered new exit (range 4) 20908 | -6/Hub_04(d) | Identified exit to Factory 20921 | -6/Hub_04(d) | Discovered exit to Factory (range 16) 20952 | -6/Hub_04(d) | Retrieved Zion intel report: Unaware Analyses 20960 | -6/Hub_04(d) | First assault squad dispatched 20984 | -6/Hub_04(d) | Retrieved Zion intel report: Component Schematics 21018 | -6/Hub_04(d) | Network Hub disabled 21067 | -6/Hub_04(d) | Found Prototype Device 21067 | -6/Hub_04(d) | Identified Exp. Thermal Shield 21149 | -6/Hub_04(d) | Network Hub disabled 21190 | -6/Hub_04(d) | Spotted Lightning 21310 | -6/Hub_04(d) | Build established: Messiah-Tank 21617 | -6/Hub_04(d) | Spotted Lightning 21714 | -6/Hub_04(d) | Build established: Messiah-Skirmisher 21786 | -6/Hub_04(d) | Spotted Lightning 21790 | -6/Hub_04(d) | Core integrity fell below 50% 21791 | -6/Hub_04(d) | Terminal network hard line cut 21792 | -6/Hub_04(d) | Spotted Lightning 21795 | -6/Hub_04(d) | Spotted Lightning 21811 | -6/Hub_04(d) | Destroyed Lightning 21829 | -6/Hub_04(d) | Destroyed Lightning 21857 | -6/Hub_04(d) | Destroyed Lightning 21872 | -6/Hub_04(d) | Found Prototype Energy Cannon 21896 | -6/Hub_04(d) | Found Prototype Device 21896 | -6/Hub_04(d) | Identified Exp. Phase Shifter 21902 | -6/Hub_04(d) | Found Prototype Device 21902 | -6/Hub_04(d) | Identified Exp. EM Shield 21940 | -6/Hub_04(d) | Network Hub disabled 22040 | -6/Hub_04(d) | Entered Factory 22040 | -5/Factory | Evolved 2 slots: Propulsion x1, Utility x1 22068 | -5/Factory | Discovered new exit (range 22) 22095 | -5/Factory | Sucked down chute 22095 | -5/Factory | Entered Waste 22110 | -5/Waste | EMP discharged 22119 | -5/Waste | Spotted C-40 Crusher 22128 | -5/Waste | Spotted C-40 Crusher 22150 | -5/Waste | Spotted C-40 Crusher 22164 | -5/Waste | Build established: Scavenger-Skirmisher 22176 | -5/Waste | Spotted C-40 Crusher 22182 | -5/Waste | Spotted C-40 Crusher 22184 | -5/Waste | Discovered new exit (range 10) 22186 | -5/Waste | Crushed by Compactor (1 part destroyed, 1 dropped) 22193 | -5/Waste | Identified exit to Factory 22194 | -5/Waste | Entered Factory 22246 | -5/Factory | Fabricated Force Field (x2) 22396 | -5/Factory | Discovered new exit (range 20) 22418 | -5/Factory | Identified exit to Upper Caves 22763 | -5/Factory | Repaired Adv. KE Penetrator 22787 | -5/Factory | System corruption reached 10% 23092 | -5/Factory | Retrieved Zion intel report: Branch Access 23104 | -5/Factory | Retrieved Zion intel report: Active Terminals 23212 | -5/Factory | Discovered new exit (range 11) 23249 | -5/Factory | Retrieved Zion intel report: Guard Positions 23400 | -5/Factory | Garrison activated, responded to threat 23497 | -5/Factory | Destroyed 9 combat bots 23554 | -5/Factory | Retrieved Zion intel report: Emergency Access 23555 | -5/Factory | Zion Hacker squad teleported in 23610 | -5/Factory | Spotted B-75 Beast 23643 | -5/Factory | Destroyed B-75 Beast 23664 | -5/Factory | Destroyed 7 combat bots 23726 | -5/Factory | Entered Upper Caves 24065 | -5/Upper Caves | Encountered a Warlord checkpoint 24146 | -5/Upper Caves | Learned Factory emergency access door positions 24356 | -5/Upper Caves | Attracted the attention of an 0b10 checkpoint 24440 | -5/Upper Caves | Discovered new exit (range 17) 24450 | -5/Upper Caves | Learned Factory garrison access intel 24511 | -5/Upper Caves | Identified exit to Upper Caves 24512 | -5/Upper Caves | Entered another Upper Caves area 24516 | -5/Upper Caves | Discovered new exit (range 19) 24557 | -5/Upper Caves | Entered an active Warlord outpost 24566 | -5/Upper Caves | Learned Extension trap positions 24566 | -5/Upper Caves | Learned Factory emergency access door positions 24566 | -5/Upper Caves | Learned Research stockpile data 24566 | -5/Upper Caves | Learned Factory stockpile data 24977 | -5/Upper Caves | Learned 8 Factory zone layouts 25044 | -5/Upper Caves | Discovered new exit (range 8) 25144 | -5/Upper Caves | Identified exit to Zhirov 25145 | -5/Upper Caves | Entered Zhirov 25147 | -5/Zhirov | Discovered new exit (range 3) 25166 | -5/Zhirov | Met Zhirov 25190 | -5/Zhirov | Learned location of Quarantine (-3) 25190 | -5/Zhirov | Learned location of Testing (-2) 25190 | -5/Zhirov | Learned location of Command (-1) 25196 | -5/Zhirov | Zhirov requested help retrieving the SGEMP Prototype 25215 | -5/Zhirov | Found Alien Artifact 25215 | -5/Zhirov | Identified Integrated Reactor 25215 | -5/Zhirov | Installed Integrated Reactor, increased core energy generation (+10) 25340 | -5/Zhirov | Found Alien Artifact 25394 | -5/Zhirov | Identified exit to Proximity Caves 25395 | -5/Zhirov | Entered Proximity Caves 25681 | -4/Proximity Caves | Learned Research stockpile data 25813 | -4/Proximity Caves | Discovered new exit (range 16) 26040 | -4/Proximity Caves | Identified exit to Factory 26041 | -4/Proximity Caves | Entered Factory 26041 | -4/Factory | Evolved 2 slots: Power x1, Utility x1 26045 | -4/Factory | Loaded intel: 4 garrison access locations 26065 | -4/Factory | Found Quantum Capacitor 26069 | -4/Factory | Central database locked down 26069 | -4/Factory | Identified Transdimensional Reconstructor 26154 | -4/Factory | Spotted B-86 Titan 26181 | -4/Factory | Destroyed B-86 Titan 26294 | -4/Factory | Repaired Centrium Medium Armor Plating 26365 | -4/Factory | Discovered new exit (range 8) 26373 | -4/Factory | Identified exit to Upper Caves 26430 | -4/Factory | Fabricated Hvy. Shield Leg (x1) 26590 | -4/Factory | Retrieved Zion intel report: Active Terminals 26791 | -4/Factory | First assault squad dispatched 26868 | -4/Factory | Warped through subspace 26927 | -4/Factory | Discovered new exit (range 4) 26929 | -4/Factory | Identified exit to Research 26954 | -4/Factory | Found Unknown Protection 26954 | -4/Factory | Identified Powered Armor 26957 | -4/Factory | Found Powered Armor 27105 | -4/Factory | Spotted B-86 Titan 27173 | -4/Factory | Entered Upper Caves 27481 | -4/Upper Caves | Build established: Skirmisher 27903 | -4/Upper Caves | Learned Research emergency access door positions 27909 | -4/Upper Caves | Discovered new exit (range 5) 27912 | -4/Upper Caves | Learned Research emergency access door positions 27959 | -4/Upper Caves | Identified exit to Upper Caves 28584 | -4/Upper Caves | Attracted the attention of an 0b10 base 28682 | -4/Upper Caves | Learned Research garrison access intel 28682 | -4/Upper Caves | Learned Factory stockpile data 28712 | -4/Upper Caves | Entered another Upper Caves area 28736 | -4/Upper Caves | Learned 8 Research zone layouts 29329 | -4/Upper Caves | Discovered new exit (range 20) 29394 | -4/Upper Caves | Identified exit to Warlord 29808 | -4/Upper Caves | Entered Warlord 29927 | -4/Warlord | Identified EMDS 30062 | -4/Warlord | Attacked by Warlord forces 30062 | -4/Warlord | Spotted 6E-T3J(g) 30090 | -4/Warlord | Destroyed 6E-T3J(g) 30099 | -4/Warlord | Lost 3 allies 30154 | -4/Warlord | Released all parts (16) 30158 | -4/Warlord | Core integrity fell below 50% 30172 | -4/Warlord | Core integrity fell below 20% 30184 | -4/Warlord | Destroyed by I3-EI3(Y) with Heavy Autocannon Last Messages --------------- 30154_ Dispersion Rifle crushed and broken. 30154_ Released CR-A16's Behemoth Slayer. 30154_ CR-A16's Behemoth Slayer crushed and broken. 30157_ Knocked back. 30158_ Acquired Mak. Flight Unit. 30165_ Mak. Flight Unit destroyed. 30166_ Knocked back. 30167_ Door malfunctions. 30168_ V9-JW7(p) resets H7-YWH(b), system corruption cleaned. 30168_ Mak. Flight Unit destroyed. 30168_ Slammed into 1N-Y8R(p). 30170_ Slammed into V9-JW7(p). 30171_ X5-XF8(p) resets H7-YWH(b), system corruption cleaned. 30171_ Slammed into 7B-6BU(M). 30173_ Acquired 5 matter. 30173_ Slammed into 7B-6BU(M). 30174_ Knocked back. Map ----- +----------------------------------------------------+ | | | | | | | | | | | | | | | | | | | | | | | | | ?????????????????????????????????????????????????? | | ?????????????????????????????????????????????????? | | ?????????????????????????????????????????????????? | | ?????######??????????????????????????????????????? | | #####"""""##?????????????????????????????????????? | | #?" X X #?????????????????????????????????????? | | #?"X #?????????????????????????????????????? | | ##? #?????????????????????????????????????? | | #?? X#?????????????????????????????????????? | | % ##??#% #??????????????????????????????????????? | | #####/##########??????????????????????????????? | | #?###??????????????????????????? | | ########/##### ### ######## #??????????????? | | ???? % ??# Y @ #??????????????? | | ???? ?+ % #??????????????? | | ?? ####### ######### #??????????????? | | ?# #?????# #??????????###??????????????? | | ##############?????#+#???????????????????????????? | | #?????????????????????????????? ?????????????????? | | """"??????????????????????????? ?????????????????? | | """???????????????????????????? ?????????????????? | | ? ????????????????????????????# ?????????????????? | | ? ?????????????????????+ ??#### ?????????????????? | | ???????????????????# ?? ?????????????????? | | ? ????????????????????# ?????????????????? | | ?? ???????????????????# """ ?#????#""#???????? | | ? ???????????????????# """ ??????#""#???????? | | X ???????????????????? """ ??????#""#???????? | | " ?"??????????????????? #?????#""#???????? | | """ "?"?#?? ???????#???? ? #????##""#???????? | | "" ""??## ? ??????###?# #### #######""#####???? | | "" "?"?#"""#?????#???# # # "" "##### | | #######?## X???####### # # "" """""" | | ########## ####???#### # # "" """""" | | ######## + | | + | | ^ + | | " """ """ """ """ + ^ ^ | +----------------------------------------------------+ Best States ------------- Heat Dissipation 89 Coolant Potential 65 Energy Generation 64 Energy Capacity 690 Matter Stores 300 Matter Capacity 300 Sight Range 22 Robot Scan Range 16 Terrain Scan Range 20 Terrain Scan Density 1010 Jamming Range 12 Armor Coverage 800 Resistance: EX 50 Utility Shielding 90 Weapon Shielding 66 Weapon Cycling 20 Evasion (%) 70 Targeting Accuracy 12 Target Analysis 8 Core Analysis 6 Recoil Reduction 4 Particle Charging 25 Offensive Hacking 20 Defensive Hacking 16 Authchip Count 7 Item Schematics ----------------- Imp. Weapon Shielding | -8/Materials | Scanalyzed Hcp. Storage Unit | -8/Materials | Hacked Lgt. Armor Plating | -8/Materials | Hacked Coolant Injector | -7/Factory | Scanalyzed Imp. Hardlight Generator | -6/Factory | Z-intel Imp. Cryofiber Web | -6/Factory | Z-intel Angular Momentum Engine | -6/Factory | Z-intel Adv. Heat Sink | -6/Factory | Z-intel Gravmag Array | -6/Factory | Z-intel Imp. Target Analyzer | -6/Factory | Z-intel Imp. Actuator Array | -6/Factory | Z-intel Stasis Canceller | -6/Factory | Z-intel Force Field | -6/Factory | Z-intel Imp. Medium Treads | -6/Factory | Z-intel System Restoration Module | -6/Factory | Z-intel Particle Charger | -6/Factory | Z-intel Mni. Assault Cannon | -6/Factory | Z-intel Biomechanical Wings | -6/Factory | Z-intel Cld. Deuterium Engine | -6/Factory | Z-intel Imp. Heavy Laser | -6/Factory | Z-intel Com. Ion Cannon | -6/Factory | Z-intel Hvy. Deuterium Engine | -6/Factory | Z-intel Prc. Beam Rifle | -6/Factory | Z-intel Gravity Neutralizer | -6/Factory | Z-intel Prc. Shock Rifle | -6/Factory | Z-intel Cld. Pulse Rifle | -6/Factory | Z-intel Enh. Autogun | -6/Factory | Z-intel Antimatter Cannon | -6/Factory | Z-intel Cld. Aerolev Unit | -6/Factory | Z-intel Cld. Plasma Cannon | -6/Factory | Z-intel Prc. Rocket Launcher | -6/Factory | Z-intel Force Rifle | -6/Factory | Z-intel Cld. Particle Cannon | -6/Factory | Z-intel Thermal Defense Suite | -6/Factory | Z-intel Scatter Rocket Array | -6/Factory | Z-intel Cld. VTOL Module | -6/Factory | Z-intel Imp. Lightning Gun | -6/Factory | Z-intel Enh. Optical Array | -6/Factory | Scanalyzed Impact Mace | -6/Extension | Z-intel Adv. Beam Rifle | -6/Extension | Z-intel Hvy. EM Shotgun | -6/Extension | Z-intel Aerolev Unit | -6/Extension | Z-intel Cld. Airjet | -6/Extension | Z-intel Imp. Airjet | -6/Extension | Z-intel Rocket Array | -6/Extension | Z-intel Hpw. Field Laser | -6/Extension | Z-intel Imp. Heavy Machine Gun | -6/Extension | Z-intel Cold Fusion Reactor | -6/Extension | Z-intel Assault Cannon | -6/Hub_04(d) | Z-intel Imp. Gravmag System | -6/Hub_04(d) | Z-intel Axe | -6/Hub_04(d) | Z-intel Thermic Laser | -6/Hub_04(d) | Z-intel Imp. Titanium Leg | -6/Hub_04(d) | Z-intel Med. Storage Unit | -6/Hub_04(d) | Z-intel Imp. Targeting Computer | -6/Hub_04(d) | Z-intel Titanium Leg | -6/Hub_04(d) | Z-intel Shock Rifle | -6/Hub_04(d) | Z-intel Component Analysis Suite | -6/Hub_04(d) | Z-intel Nuclear Core | -6/Hub_04(d) | Z-intel System Shield | -6/Hub_04(d) | Z-intel Pulse Rifle | -6/Hub_04(d) | Z-intel Centrium Medium Armor Plating | -5/Factory | Scanalyzed Adv. KE Penetrator | -5/Factory | Scanalyzed Exp. Heat Sink | -5/Factory | Scanalyzed Assault Drone Bay | -5/Zhirov | Free Exp. Optical Array | -5/Zhirov | Free Imp. Arc Thrower | -5/Zhirov | Free Robot Schematics ------------------ B-48 Gladiator | -6/Extension | Z-intel G-50 Soldier | -6/Extension | Z-intel L-41 Fighter | -6/Extension | Z-intel Fabricated ------------ Hcp. Storage Unit | x1 | -7/Factory | Authchip Force Rifle | x2 | -6/Factory | Authchip Force Field | x2 | -5/Factory | Authchip Hvy. Shield Leg | x1 | -4/Factory | Preloaded Repaired ---------- Lgt. Cannon | 68% | -10/Materials Hrd. Medium Armor Plating | 33% | -8/Materials Spk. Treads | 32% | -8/Materials Spk. Treads | 41% | -8/Materials Imp. Weapon Shielding | 49% | -8/Materials Seismic Detector | 45% | -8/Materials Adv. KE Penetrator | 13% | -5/Factory Centrium Medium Armor Plating | 15% | -4/Factory Studied --------- Imp. Titanium Leg | -7/Factory | Hacked Gatling Laser | -7/Factory | Hacked Rnf. Deuterium Engine | -7/Factory | Hacked Flexi-carbon Leg | -6/Factory | Hacked KE Penetrator | -5/Factory | Hacked Lrn. Proton Cannon | -4/Factory | Hacked Alien Tech Used ----------------- Integrated Reactor Transdimensional Reconstructor Achievements -------------- None Challenges ------------ None Game ------ Seed TerrorClaymoresMesh Manual? 0 Play Time 05:09:23 Cumulative 531.8 hours Start 2026.01.22 @ 17:53:28 End 2026.01.23 @ 17:59:46 Sessions 21 Manual Loads 0 Difficulty Rogue Special Mode None Game No. 311 Rogue 311 Adventurer 0 Explorer 0 Win Type - Total 16 Types 10/0/3/0/0/0/1/2/0/0 Lore% 87 Gallery% 83 Achievement% 68 Wizard Run 0 Options --------- Layout 1 ASCII 0 Keyboard 0 Movement Numpad Keybinds 0 Fullscreen 2 Font 24/Smallcaps Map View 50x40 Zoom Use 0% Tactical HUD 1 Map Filters NONE Filters NONE Steam 1 RUN: 3f92e9a5-c310-4128-a96d-83de8124f2c4